[Event "Titled Tuesday Blitz December 13 Early 2022"]
[White "Mikhailovsky, Vladimir"]
[Black "Pham, Khoi"]
[WhiteFideId "34105414"]
[BlackFideId "1054988"]
[WhiteElo "2295"]
[BlackElo "2540"]
[Result "1-0"]
[Round "04"]
[TimeControl "180+1"]
[Date "2022.12.14"]
[WhiteClock "0:00:09"]
[BlackClock "0:00:01"]

1. Nf3 {[%clk 0:03:00]}  Nf6 {[%clk 0:02:56]} 2. d4 {[%clk 0:02:59]}  d5 {[%clk 0:02:55]} 3. Bg5 {[%clk 0:02:57]}  c5 {[%clk 0:02:51]} 4. e3 {[%clk 0:02:56]}  Nc6 {[%clk 0:02:51]} 5. c3 {[%clk 0:02:56]}  Bf5 {[%clk 0:02:50]} 6. dxc5 {[%clk 0:02:47]}  e6 {[%clk 0:02:45]} 7. b4 {[%clk 0:02:44]}  a5 {[%clk 0:02:43]} 8. Bb5 {[%clk 0:02:43]}  Be7 {[%clk 0:02:39]} 9. Nd4 {[%clk 0:02:38]}  Qd7 {[%clk 0:02:30]} 10. Nxf5 {[%clk 0:02:36]}  exf5 {[%clk 0:02:31]} 11. a3 {[%clk 0:02:32]}  h6 {[%clk 0:02:25]} 12. Bxf6 {[%clk 0:02:03]}  Bxf6 {[%clk 0:02:26]} 13. Ra2 {[%clk 0:02:04]}  O-O {[%clk 0:02:21]} 14. O-O {[%clk 0:02:03]}  Qe6 {[%clk 0:02:18]} 15. Qb3 {[%clk 0:01:45]}  Ne5 {[%clk 0:01:51]} 16. Rd2 {[%clk 0:01:25]}  Rfd8 {[%clk 0:01:50]} 17. Rfd1 {[%clk 0:01:25]}  a4 {[%clk 0:01:22]} 18. Qa2 {[%clk 0:01:14]}  Nc4 {[%clk 0:01:16]} 19. Bxc4 {[%clk 0:00:34]}  dxc4 {[%clk 0:01:17]} 20. Rxd8+ {[%clk 0:00:35]}  Rxd8 {[%clk 0:01:00]} 21. Rxd8+ {[%clk 0:00:32]}  Bxd8 {[%clk 0:01:01]} 22. Nd2 {[%clk 0:00:32]}  Qd5 {[%clk 0:00:58]} 23. Qc2 {[%clk 0:00:26]}  Bf6 {[%clk 0:00:57]} 24. Nf3 {[%clk 0:00:15]}  Qd3 {[%clk 0:00:53]} 25. Qxd3 {[%clk 0:00:10]}  cxd3 {[%clk 0:00:54]} 26. b5 {[%clk 0:00:04]}  Bxc3 {[%clk 0:00:52]} 27. c6 {[%clk 0:00:02]}  bxc6 {[%clk 0:00:51]} 28. bxc6 {[%clk 0:00:03]}  Ba5 {[%clk 0:00:48]} 29. Kf1 {[%clk 0:00:03]}  Kf8 {[%clk 0:00:48]} 30. Ne5 {[%clk 0:00:03]}  d2 {[%clk 0:00:45]} 31. Ke2 {[%clk 0:00:04]}  Ke7 {[%clk 0:00:44]} 32. Nc4 {[%clk 0:00:04]}  Bc3 {[%clk 0:00:40]} 33. Nb6 {[%clk 0:00:01]}  Kd6 {[%clk 0:00:36]} 34. Nxa4 {[%clk 0:00:02]}  Ba5 {[%clk 0:00:34]} 35. Nb2 {[%clk 0:00:02]}  Kxc6 {[%clk 0:00:29]} 36. Nc4 {[%clk 0:00:03]}  Bc3 {[%clk 0:00:19]} 37. Nxd2 {[%clk 0:00:03]}  Bb2 {[%clk 0:00:18]} 38. a4 {[%clk 0:00:04]}  Kc5 {[%clk 0:00:19]} 39. Nb3+ {[%clk 0:00:05]}  Kb4 {[%clk 0:00:19]} 40. Nd4 {[%clk 0:00:05]}  g6 {[%clk 0:00:15]} 41. Kd3 {[%clk 0:00:04]}  Kxa4 {[%clk 0:00:15]} 42. Kc4 {[%clk 0:00:05]}  Ka5 {[%clk 0:00:15]} 43. Kc5 {[%clk 0:00:04]}  Ka6 {[%clk 0:00:14]} 44. Kd6 {[%clk 0:00:05]}  Ba3+ {[%clk 0:00:12]} 45. Kd7 {[%clk 0:00:06]}  Kb6 {[%clk 0:00:12]} 46. Ke8 {[%clk 0:00:06]}  f6 {[%clk 0:00:09]} 47. Kf7 {[%clk 0:00:07]}  g5 {[%clk 0:00:08]} 48. Nxf5 {[%clk 0:00:07]}  h5 {[%clk 0:00:07]} 49. Kxf6 {[%clk 0:00:07]}  g4 {[%clk 0:00:04]} 50. Kg5 {[%clk 0:00:08]}  Bd6 {[%clk 0:00:02]} 51. Kxh5 {[%clk 0:00:08]}  Bxh2 {[%clk 0:00:02]} 52. Kxg4 {[%clk 0:00:08]}  Bg1 {[%clk 0:00:02]} 53. Kf3 {[%clk 0:00:09]}  Kc6 {[%clk 0:00:02]} 54. g3 {[%clk 0:00:09]}  Kd5 {[%clk 0:00:03]} 55. Kg2 {[%clk 0:00:10]}  Ke5 {[%clk 0:00:01]} 56. Kxg1 {[%clk 0:00:09]} 1-0


[Site "https://www.chess.com"]

[Event "Titled Tuesday Blitz December 13 Early 2022"]
[White "Mkrtchian, Lilit"]
[Black "Gjestemoen-VonHirsch, Andre"]
[WhiteFideId "13300601"]
[BlackFideId "1539531"]
[WhiteElo "2316"]
[BlackElo "2198"]
[Result "1-0"]
[Round "04"]
[TimeControl "180+1"]
[Date "2022.12.14"]
[WhiteClock "0:00:40"]
[BlackClock "0:00:05"]

1. Nf3 {[%clk 0:03:00]}  g6 {[%clk 0:02:57]} 2. e4 {[%clk 0:02:57]}  Bg7 {[%clk 0:02:57]} 3. d4 {[%clk 0:02:57]}  c5 {[%clk 0:02:56]} 4. dxc5 {[%clk 0:02:53]}  Na6 {[%clk 0:02:43]} 5. Bxa6 {[%clk 0:02:34]}  bxa6 {[%clk 0:02:43]} 6. O-O {[%clk 0:02:33]}  Bb7 {[%clk 0:02:41]} 7. Nc3 {[%clk 0:02:22]}  Rc8 {[%clk 0:02:37]} 8. Be3 {[%clk 0:02:22]}  Nf6 {[%clk 0:02:35]} 9. Bd4 {[%clk 0:02:09]}  O-O {[%clk 0:02:24]} 10. Re1 {[%clk 0:02:08]}  Rc7 {[%clk 0:01:52]} 11. Nd5 {[%clk 0:02:01]}  Nxd5 {[%clk 0:01:49]} 12. exd5 {[%clk 0:01:59]}  d6 {[%clk 0:00:20]} 13. c6 {[%clk 0:01:50]}  Bc8 {[%clk 0:00:20]} 14. Bxg7 {[%clk 0:01:46]}  Kxg7 {[%clk 0:00:19]} 15. Qd4+ {[%clk 0:01:47]}  f6 {[%clk 0:00:19]} 16. c4 {[%clk 0:01:38]}  e5 {[%clk 0:00:19]} 17. dxe6 {[%clk 0:01:36]}  Re8 {[%clk 0:00:17]} 18. Qd5 {[%clk 0:01:28]}  Rce7 {[%clk 0:00:10]} 19. Nd4 {[%clk 0:01:27]}  Qb6 {[%clk 0:00:09]} 20. Qxd6 {[%clk 0:01:17]}  Qxb2 {[%clk 0:00:08]} 21. Rad1 {[%clk 0:01:11]}  Qxa2 {[%clk 0:00:06]} 22. c5 {[%clk 0:00:52]}  Bxe6 {[%clk 0:00:06]} 23. c7 {[%clk 0:00:40]}  Bc8 {[%clk 0:00:05]} 1-0


[Site "https://www.chess.com"]

[Event "Titled Tuesday Blitz December 13 Early 2022"]
[White "Moiseenko, Alexander"]
[Black "Keymer, Vincent"]
[WhiteFideId "14102560"]
[BlackFideId "12940690"]
[WhiteElo "2577"]
[BlackElo "2600"]
[Result "0-1"]
[Round "04"]
[TimeControl "180+1"]
[Date "2022.12.13"]
[WhiteClock "0:00:03"]
[BlackClock "0:00:06"]

1. d4 {[%clk 0:02:58]}  Nf6 {[%clk 0:02:59]} 2. Bg5 {[%clk 0:02:58]}  d5 {[%clk 0:02:58]} 3. e3 {[%clk 0:02:58]}  Ne4 {[%clk 0:02:57]} 4. Bf4 {[%clk 0:02:57]}  c5 {[%clk 0:02:57]} 5. Bd3 {[%clk 0:02:57]}  cxd4 {[%clk 0:02:48]} 6. exd4 {[%clk 0:02:57]}  Qb6 {[%clk 0:02:38]} 7. Bxe4 {[%clk 0:02:48]}  dxe4 {[%clk 0:02:32]} 8. Nc3 {[%clk 0:02:48]}  Qxb2 {[%clk 0:02:07]} 9. Nge2 {[%clk 0:02:43]}  Bg4 {[%clk 0:01:24]} 10. O-O {[%clk 0:02:26]}  Nc6 {[%clk 0:00:41]} 11. Qd2 {[%clk 0:01:38]}  Bxe2 {[%clk 0:00:32]} 12. Rfb1 {[%clk 0:01:23]}  Qa3 {[%clk 0:00:29]} 13. Nxe2 {[%clk 0:01:22]}  Qa6 {[%clk 0:00:24]} 14. d5 {[%clk 0:01:18]}  Rd8 {[%clk 0:00:24]} 15. c4 {[%clk 0:00:30]}  e6 {[%clk 0:00:23]} 16. Qc2 {[%clk 0:00:29]}  Na5 {[%clk 0:00:21]} 17. Qa4+ {[%clk 0:00:24]}  Rd7 {[%clk 0:00:20]} 18. Rb5 {[%clk 0:00:14]}  b6 {[%clk 0:00:18]} 19. Bd2 {[%clk 0:00:10]}  Qc8 {[%clk 0:00:16]} 20. Bxa5 {[%clk 0:00:10]}  bxa5 {[%clk 0:00:17]} 21. Rab1 {[%clk 0:00:09]}  Bd6 {[%clk 0:00:17]} 22. c5 {[%clk 0:00:09]}  Bc7 {[%clk 0:00:16]} 23. d6 {[%clk 0:00:09]}  O-O {[%clk 0:00:16]} 24. dxc7 {[%clk 0:00:09]}  Qxc7 {[%clk 0:00:14]} 25. Qxa5 {[%clk 0:00:08]}  Qc6 {[%clk 0:00:12]} 26. h3 {[%clk 0:00:08]}  h6 {[%clk 0:00:10]} 27. Ng3 {[%clk 0:00:08]}  f5 {[%clk 0:00:08]} 28. Rb8 {[%clk 0:00:05]}  Rxb8 {[%clk 0:00:08]} 29. Rxb8+ {[%clk 0:00:06]}  Kh7 {[%clk 0:00:09]} 30. Rb1 {[%clk 0:00:06]}  f4 {[%clk 0:00:08]} 31. Nf1 {[%clk 0:00:05]}  e5 {[%clk 0:00:07]} 32. Rc1 {[%clk 0:00:05]}  Rd4 {[%clk 0:00:04]} 33. Qc3 {[%clk 0:00:05]}  h5 {[%clk 0:00:03]} 34. Qc2 {[%clk 0:00:05]}  Rd3 {[%clk 0:00:03]} 35. Qe2 {[%clk 0:00:05]}  g6 {[%clk 0:00:02]} 36. Nd2 {[%clk 0:00:04]}  Rd4 {[%clk 0:00:03]} 37. Nb3 {[%clk 0:00:04]}  f3 {[%clk 0:00:03]} 38. Nxd4 {[%clk 0:00:03]}  exd4 {[%clk 0:00:03]} 39. Qb2 {[%clk 0:00:03]}  Qf6 {[%clk 0:00:03]} 40. c6 {[%clk 0:00:02]}  h4 {[%clk 0:00:02]} 41. Qc2 {[%clk 0:00:01]}  Qg5 {[%clk 0:00:01]} 42. g3 {[%clk 0:00:01]}  hxg3 {[%clk 0:00:02]} 43. c7 {[%clk 0:00:01]}  gxf2+ {[%clk 0:00:03]} 44. Kxf2 {[%clk 0:00:01]}  Qg2+ {[%clk 0:00:04]} 45. Ke1 {[%clk 0:00:02]}  Qg1+ {[%clk 0:00:05]} 46. Kd2 {[%clk 0:00:02]}  Qe3+ {[%clk 0:00:05]} 47. Kd1 {[%clk 0:00:03]}  Qg1+ {[%clk 0:00:05]} 48. Kd2 {[%clk 0:00:03]}  Qe3+ {[%clk 0:00:05]} 49. Kd1 {[%clk 0:00:04]}  d3 {[%clk 0:00:05]} 50. Qd2 {[%clk 0:00:01]}  Qg1+ {[%clk 0:00:05]} 51. Qe1 {[%clk 0:00:02]}  f2 {[%clk 0:00:05]} 52. Kd2 {[%clk 0:00:02]}  fxe1=Q+ {[%clk 0:00:06]} 53. Rxe1 {[%clk 0:00:03]}  Qf2+ {[%clk 0:00:06]} 54. Kd1 {[%clk 0:00:03]}  Qc2# {[%clk 0:00:06]} 0-1


[Site "https://www.chess.com"]

[Event "Titled Tuesday Blitz December 13 Early 2022"]
[White "Namitbir Singh Walia"]
[Black "Szyszylo, Rafal"]
[WhiteFideId "35071068"]
[BlackFideId "1109626"]
[WhiteElo "2239"]
[BlackElo "1981"]
[Result "1-0"]
[Round "04"]
[TimeControl "180+1"]
[Date "2022.12.14"]
[WhiteClock "0:01:03"]
[BlackClock "0:00:24"]

1. e4 {[%clk 0:02:57]}  d6 {[%clk 0:03:00]} 2. d4 {[%clk 0:02:56]}  Nf6 {[%clk 0:03:01]} 3. Nc3 {[%clk 0:02:56]}  g6 {[%clk 0:03:00]} 4. Bf4 {[%clk 0:02:55]}  Bg7 {[%clk 0:03:00]} 5. Qd2 {[%clk 0:02:55]}  c6 {[%clk 0:02:54]} 6. f3 {[%clk 0:02:55]}  b5 {[%clk 0:02:54]} 7. a3 {[%clk 0:02:54]}  a5 {[%clk 0:02:53]} 8. g4 {[%clk 0:02:54]}  Bb7 {[%clk 0:02:48]} 9. h4 {[%clk 0:02:53]}  h5 {[%clk 0:02:33]} 10. g5 {[%clk 0:02:47]}  Nfd7 {[%clk 0:02:34]} 11. Bh3 {[%clk 0:02:40]}  O-O {[%clk 0:02:29]} 12. Nge2 {[%clk 0:02:38]}  e5 {[%clk 0:02:21]} 13. Be3 {[%clk 0:02:35]}  d5 {[%clk 0:01:44]} 14. exd5 {[%clk 0:02:29]}  exd4 {[%clk 0:01:40]} 15. Bxd4 {[%clk 0:02:28]}  Ne5 {[%clk 0:01:39]} 16. Bxe5 {[%clk 0:02:17]}  Bxe5 {[%clk 0:01:39]} 17. O-O-O {[%clk 0:01:48]}  b4 {[%clk 0:01:24]} 18. Nb1 {[%clk 0:01:47]}  bxa3 {[%clk 0:01:23]} 19. Nxa3 {[%clk 0:01:46]}  cxd5 {[%clk 0:01:22]} 20. f4 {[%clk 0:01:46]}  Bg7 {[%clk 0:01:20]} 21. f5 {[%clk 0:01:42]}  Be5 {[%clk 0:01:10]} 22. Nd4 {[%clk 0:01:25]}  Qb6 {[%clk 0:01:06]} 23. Rhe1 {[%clk 0:01:20]}  Na6 {[%clk 0:01:02]} 24. Rxe5 {[%clk 0:01:16]}  Nb4 {[%clk 0:00:57]} 25. fxg6 {[%clk 0:01:12]}  Rab8 {[%clk 0:00:47]} 26. gxf7+ {[%clk 0:01:06]}  Kh8 {[%clk 0:00:43]} 27. Re6 {[%clk 0:01:05]}  Na2+ {[%clk 0:00:41]} 28. Kb1 {[%clk 0:01:03]}  Qc5 {[%clk 0:00:26]} 29. Rh6+ {[%clk 0:01:02]}  Kg7 {[%clk 0:00:24]} 30. Ne6+ {[%clk 0:01:03]} 1-0


[Site "https://www.chess.com"]

[Event "Titled Tuesday Blitz December 13 Early 2022"]
[White "Ohanyan, Emin"]
[Black "Svane, Rasmus"]
[WhiteFideId "13312022"]
[BlackFideId "4657101"]
[WhiteElo "2352"]
[BlackElo "2674"]
[Result "1-0"]
[Round "04"]
[TimeControl "180+1"]
[Date "2022.12.13"]
[WhiteClock "0:00:03"]
[BlackClock "0:00:05"]

1. e4 {[%clk 0:02:58]}  c6 {[%clk 0:03:00]} 2. d4 {[%clk 0:02:58]}  d5 {[%clk 0:03:01]} 3. Nc3 {[%clk 0:02:59]}  dxe4 {[%clk 0:03:01]} 4. Nxe4 {[%clk 0:03:00]}  Nf6 {[%clk 0:03:02]} 5. Nxf6+ {[%clk 0:03:01]}  exf6 {[%clk 0:03:03]} 6. Bd3 {[%clk 0:03:02]}  Qxd4 {[%clk 0:03:01]} 7. Ne2 {[%clk 0:03:02]}  Qd8 {[%clk 0:02:59]} 8. Ng3 {[%clk 0:03:03]}  Be7 {[%clk 0:02:43]} 9. Qh5 {[%clk 0:03:03]}  Qd5 {[%clk 0:02:31]} 10. Qh4 {[%clk 0:02:53]}  f5 {[%clk 0:02:17]} 11. Qh5 {[%clk 0:02:40]}  g6 {[%clk 0:02:08]} 12. Qh6 {[%clk 0:02:40]}  Qxg2 {[%clk 0:01:44]} 13. Qg7 {[%clk 0:02:36]}  Rf8 {[%clk 0:01:42]} 14. Bh6 {[%clk 0:02:32]}  Be6 {[%clk 0:01:21]} 15. O-O-O {[%clk 0:02:19]}  Nd7 {[%clk 0:01:17]} 16. Rhe1 {[%clk 0:00:44]}  Nc5 {[%clk 0:01:17]} 17. Bxf5 {[%clk 0:00:32]}  gxf5 {[%clk 0:01:12]} 18. Nxf5 {[%clk 0:00:33]}  Qxf2 {[%clk 0:00:54]} 19. Nxe7 {[%clk 0:00:23]}  Kxe7 {[%clk 0:00:55]} 20. Qg5+ {[%clk 0:00:07]}  f6 {[%clk 0:00:40]} 21. Bxf8+ {[%clk 0:00:07]}  Rxf8 {[%clk 0:00:40]} 22. Qg7+ {[%clk 0:00:08]}  Rf7 {[%clk 0:00:33]} 23. Qg8 {[%clk 0:00:08]}  Nd7 {[%clk 0:00:28]} 24. Qc8 {[%clk 0:00:04]}  Qf4+ {[%clk 0:00:03]} 25. Kb1 {[%clk 0:00:04]}  Qe5 {[%clk 0:00:02]} 26. Rxe5 {[%clk 0:00:03]}  fxe5 {[%clk 0:00:03]} 27. Qh8 {[%clk 0:00:02]}  e4 {[%clk 0:00:03]} 28. Qd4 {[%clk 0:00:03]}  Bd5 {[%clk 0:00:03]} 29. c4 {[%clk 0:00:03]}  Be6 {[%clk 0:00:04]} 30. Qxe4 {[%clk 0:00:03]}  Rf6 {[%clk 0:00:04]} 31. Qh4 {[%clk 0:00:04]}  Kd8 {[%clk 0:00:05]} 32. Qxf6+ {[%clk 0:00:03]} 1-0


[Site "https://www.chess.com"]

[Event "Titled Tuesday Blitz December 13 Early 2022"]
[White "Orozbaev, Eldiar"]
[Black "Zeman, Matyas"]
[WhiteFideId "13802240"]
[BlackFideId "364398"]
[WhiteElo "2154"]
[BlackElo "2254"]
[Result "0-1"]
[Round "04"]
[TimeControl "180+1"]
[Date "2022.12.13"]
[WhiteClock "0:00:22"]
[BlackClock "0:01:15"]

1. e4 {[%clk 0:03:00]}  e6 {[%clk 0:02:59]} 2. d4 {[%clk 0:02:57]}  d5 {[%clk 0:02:59]} 3. Nd2 {[%clk 0:02:58]}  Nc6 {[%clk 0:02:56]} 4. Ngf3 {[%clk 0:02:54]}  Nf6 {[%clk 0:02:56]} 5. Bd3 {[%clk 0:02:52]}  Nb4 {[%clk 0:02:55]} 6. e5 {[%clk 0:02:45]}  Nxd3+ {[%clk 0:02:50]} 7. cxd3 {[%clk 0:02:46]}  Nd7 {[%clk 0:02:51]} 8. O-O {[%clk 0:02:44]}  b6 {[%clk 0:02:51]} 9. Qe2 {[%clk 0:02:42]}  a5 {[%clk 0:02:51]} 10. Ne1 {[%clk 0:02:41]}  Ba6 {[%clk 0:02:49]} 11. f4 {[%clk 0:02:40]}  g6 {[%clk 0:02:50]} 12. g4 {[%clk 0:02:36]}  h5 {[%clk 0:02:49]} 13. f5 {[%clk 0:02:34]}  Qh4 {[%clk 0:02:35]} 14. fxe6 {[%clk 0:02:31]}  fxe6 {[%clk 0:02:35]} 15. Ng2 {[%clk 0:02:30]}  Qxg4 {[%clk 0:02:34]} 16. Qxg4 {[%clk 0:02:29]}  hxg4 {[%clk 0:02:35]} 17. Nf4 {[%clk 0:02:30]}  O-O-O {[%clk 0:02:11]} 18. Nxe6 {[%clk 0:02:15]}  Re8 {[%clk 0:02:11]} 19. Nf4 {[%clk 0:02:12]}  g5 {[%clk 0:02:09]} 20. Nxd5 {[%clk 0:01:58]}  Bxd3 {[%clk 0:02:09]} 21. Re1 {[%clk 0:01:33]}  c6 {[%clk 0:02:00]} 22. Ne3 {[%clk 0:01:13]}  c5 {[%clk 0:01:58]} 23. Nxg4 {[%clk 0:00:53]}  cxd4 {[%clk 0:01:57]} 24. Nb3 {[%clk 0:00:39]}  a4 {[%clk 0:01:54]} 25. Nxd4 {[%clk 0:00:38]}  Bc5 {[%clk 0:01:54]} 26. Be3 {[%clk 0:00:35]}  Nxe5 {[%clk 0:01:55]} 27. Nxe5 {[%clk 0:00:31]}  Rxe5 {[%clk 0:01:56]} 28. Bf2 {[%clk 0:00:32]}  Rxe1+ {[%clk 0:01:32]} 29. Rxe1 {[%clk 0:00:27]}  Rf8 {[%clk 0:01:32]} 30. Be3 {[%clk 0:00:22]}  Re8 {[%clk 0:01:15]} 0-1


[Site "https://www.chess.com"]

[Event "Titled Tuesday Blitz December 13 Early 2022"]
[White "Osinovsky, Stepan"]
[Black "Liu, Casper"]
[WhiteFideId "4157354"]
[BlackFideId "1454153"]
[WhiteElo "2222"]
[BlackElo "2217"]
[Result "0-1"]
[Round "04"]
[TimeControl "180+1"]
[Date "2022.12.14"]
[WhiteClock "0:00:05"]
[BlackClock "0:00:07"]

1. Nf3 {[%clk 0:03:00]}  c5 {[%clk 0:02:58]} 2. g3 {[%clk 0:03:01]}  g6 {[%clk 0:02:53]} 3. Bg2 {[%clk 0:03:02]}  Bg7 {[%clk 0:02:54]} 4. O-O {[%clk 0:03:03]}  Nf6 {[%clk 0:02:54]} 5. Re1 {[%clk 0:03:04]}  O-O {[%clk 0:02:55]} 6. e4 {[%clk 0:03:04]}  d6 {[%clk 0:02:55]} 7. d3 {[%clk 0:03:02]}  Nc6 {[%clk 0:02:55]} 8. a4 {[%clk 0:02:59]}  Rb8 {[%clk 0:02:54]} 9. e5 {[%clk 0:02:57]}  dxe5 {[%clk 0:02:54]} 10. Nxe5 {[%clk 0:02:58]}  Nxe5 {[%clk 0:02:51]} 11. Rxe5 {[%clk 0:02:59]}  Be6 {[%clk 0:02:50]} 12. Nd2 {[%clk 0:02:57]}  Nd5 {[%clk 0:02:41]} 13. Re1 {[%clk 0:02:51]}  Nb4 {[%clk 0:02:40]} 14. Ne4 {[%clk 0:02:39]}  b6 {[%clk 0:02:08]} 15. a5 {[%clk 0:02:04]}  Nc6 {[%clk 0:01:12]} 16. axb6 {[%clk 0:01:39]}  Qxb6 {[%clk 0:01:13]} 17. h4 {[%clk 0:01:21]}  Bd5 {[%clk 0:00:46]} 18. h5 {[%clk 0:01:18]}  Rfd8 {[%clk 0:00:35]} 19. hxg6 {[%clk 0:00:51]}  hxg6 {[%clk 0:00:36]} 20. c3 {[%clk 0:00:39]}  Na5 {[%clk 0:00:30]} 21. Ra3 {[%clk 0:00:26]}  Nb3 {[%clk 0:00:22]} 22. Bg5 {[%clk 0:00:23]}  Rd7 {[%clk 0:00:18]} 23. Qe2 {[%clk 0:00:20]}  Rbd8 {[%clk 0:00:18]} 24. Qc2 {[%clk 0:00:17]}  Be6 {[%clk 0:00:14]} 25. Be3 {[%clk 0:00:12]}  Rxd3 {[%clk 0:00:13]} 26. Ng5 {[%clk 0:00:12]}  Bc4 {[%clk 0:00:12]} 27. Ra4 {[%clk 0:00:10]}  Qb5 {[%clk 0:00:09]} 28. Rxa7 {[%clk 0:00:09]}  Nd2 {[%clk 0:00:08]} 29. Rxe7 {[%clk 0:00:07]}  Bb3 {[%clk 0:00:08]} 30. Qc1 {[%clk 0:00:05]}  Bf6 {[%clk 0:00:07]} 0-1


[Site "https://www.chess.com"]

[Event "Titled Tuesday Blitz December 13 Early 2022"]
[White "Papasimakopoulos, Alexandros"]
[Black "Osmak, Yuliia"]
[WhiteFideId "4244125"]
[BlackFideId "14101602"]
[WhiteElo "2384"]
[BlackElo "2328"]
[Result "0-1"]
[Round "04"]
[TimeControl "180+1"]
[Date "2022.12.14"]
[WhiteClock "0:00:06"]
[BlackClock "0:00:14"]

1. d4 {[%clk 0:02:57]}  f5 {[%clk 0:02:35]} 2. e4 {[%clk 0:02:55]}  fxe4 {[%clk 0:02:33]} 3. Nc3 {[%clk 0:02:55]}  Nf6 {[%clk 0:02:31]} 4. Bg5 {[%clk 0:02:56]}  g6 {[%clk 0:02:30]} 5. f3 {[%clk 0:02:55]}  d5 {[%clk 0:02:18]} 6. fxe4 {[%clk 0:02:55]}  dxe4 {[%clk 0:02:15]} 7. Bc4 {[%clk 0:02:54]}  Bg7 {[%clk 0:02:10]} 8. Nge2 {[%clk 0:02:53]}  Bf5 {[%clk 0:01:48]} 9. Qd2 {[%clk 0:02:49]}  Nbd7 {[%clk 0:01:41]} 10. h3 {[%clk 0:02:43]}  Nb6 {[%clk 0:01:40]} 11. Bb3 {[%clk 0:02:42]}  Qd7 {[%clk 0:01:24]} 12. O-O-O {[%clk 0:02:35]}  O-O-O {[%clk 0:01:20]} 13. d5 {[%clk 0:02:33]}  h5 {[%clk 0:01:15]} 14. Nf4 {[%clk 0:02:23]}  Kb8 {[%clk 0:01:09]} 15. Qe3 {[%clk 0:02:17]}  Qd6 {[%clk 0:00:58]} 16. a3 {[%clk 0:02:09]}  Qe5 {[%clk 0:00:54]} 17. Nd3 {[%clk 0:01:54]}  Nfxd5 {[%clk 0:00:48]} 18. Nxd5 {[%clk 0:01:37]}  exd3 {[%clk 0:00:38]} 19. Qxe5 {[%clk 0:01:24]}  Bxe5 {[%clk 0:00:39]} 20. Nxb6 {[%clk 0:01:23]}  axb6 {[%clk 0:00:34]} 21. Bxe7 {[%clk 0:01:18]}  d2+ {[%clk 0:00:32]} 22. Kb1 {[%clk 0:00:56]}  Rd7 {[%clk 0:00:30]} 23. Bg5 {[%clk 0:00:55]}  Be4 {[%clk 0:00:26]} 24. Rhg1 {[%clk 0:00:46]}  Bh2 {[%clk 0:00:18]} 25. Rh1 {[%clk 0:00:41]}  Be5 {[%clk 0:00:17]} 26. Rxd2 {[%clk 0:00:39]}  Rxd2 {[%clk 0:00:17]} 27. Bxd2 {[%clk 0:00:40]}  Bxg2 {[%clk 0:00:17]} 28. Rg1 {[%clk 0:00:40]}  Bxh3 {[%clk 0:00:17]} 29. Rxg6 {[%clk 0:00:40]}  h4 {[%clk 0:00:16]} 30. Bd5 {[%clk 0:00:38]}  Bc8 {[%clk 0:00:16]} 31. Rg5 {[%clk 0:00:37]}  Bd6 {[%clk 0:00:15]} 32. Bc3 {[%clk 0:00:34]}  Rf8 {[%clk 0:00:14]} 33. Rh5 {[%clk 0:00:28]}  h3 {[%clk 0:00:14]} 34. b4 {[%clk 0:00:25]}  h2 {[%clk 0:00:14]} 35. Kb2 {[%clk 0:00:25]}  Rf5 {[%clk 0:00:14]} 36. Rxf5 {[%clk 0:00:20]}  Bxf5 {[%clk 0:00:15]} 37. a4 {[%clk 0:00:16]}  c6 {[%clk 0:00:15]} 38. Bg2 {[%clk 0:00:13]}  Be6 {[%clk 0:00:15]} 39. b5 {[%clk 0:00:05]}  Bd5 {[%clk 0:00:15]} 40. Bh1 {[%clk 0:00:05]}  Bxh1 {[%clk 0:00:14]} 41. Be5 {[%clk 0:00:06]}  Bxe5+ {[%clk 0:00:14]} 0-1


[Site "https://www.chess.com"]

[Event "Titled Tuesday Blitz December 13 Early 2022"]
[White "Perera Alfonso, Rene Humberto"]
[Black "Putnam, Liam"]
[WhiteFideId "3514722"]
[BlackFideId "30938279"]
[WhiteElo "2313"]
[BlackElo "2082"]
[Result "0-1"]
[Round "04"]
[TimeControl "180+1"]
[Date "2022.12.14"]
[WhiteClock "0:00:14"]
[BlackClock "0:00:14"]

1. e4 {[%clk 0:02:59]}  g6 {[%clk 0:02:55]} 2. d4 {[%clk 0:02:59]}  Bg7 {[%clk 0:02:55]} 3. Nc3 {[%clk 0:02:59]}  d6 {[%clk 0:02:55]} 4. Be3 {[%clk 0:02:58]}  a6 {[%clk 0:02:55]} 5. f4 {[%clk 0:02:57]}  b5 {[%clk 0:02:56]} 6. Bd3 {[%clk 0:02:58]}  Nd7 {[%clk 0:02:55]} 7. Nf3 {[%clk 0:02:58]}  c5 {[%clk 0:02:55]} 8. e5 {[%clk 0:02:54]}  cxd4 {[%clk 0:02:50]} 9. Bxd4 {[%clk 0:02:50]}  b4 {[%clk 0:02:18]} 10. Ne2 {[%clk 0:02:25]}  dxe5 {[%clk 0:02:06]} 11. fxe5 {[%clk 0:02:20]}  e6 {[%clk 0:02:02]} 12. Be4 {[%clk 0:02:20]}  Rb8 {[%clk 0:01:55]} 13. Qd2 {[%clk 0:02:19]}  Qc7 {[%clk 0:01:52]} 14. O-O-O {[%clk 0:02:08]}  Ne7 {[%clk 0:01:52]} 15. h4 {[%clk 0:02:04]}  h6 {[%clk 0:01:45]} 16. Kb1 {[%clk 0:02:01]}  Nc6 {[%clk 0:01:40]} 17. Nf4 {[%clk 0:01:12]}  Nxd4 {[%clk 0:01:35]} 18. Qxd4 {[%clk 0:01:11]}  O-O {[%clk 0:01:20]} 19. Nd3 {[%clk 0:01:01]}  Rb5 {[%clk 0:01:12]} 20. h5 {[%clk 0:01:00]}  g5 {[%clk 0:01:10]} 21. Qd6 {[%clk 0:00:46]}  Bxe5 {[%clk 0:00:45]} 22. Ndxe5 {[%clk 0:00:16]}  Qxd6 {[%clk 0:00:44]} 23. Nxd7 {[%clk 0:00:16]}  Qxd7 {[%clk 0:00:33]} 24. Rxd7 {[%clk 0:00:15]}  Bxd7 {[%clk 0:00:34]} 25. Rd1 {[%clk 0:00:15]}  Rd8 {[%clk 0:00:22]} 26. Bc6 {[%clk 0:00:15]}  Bxc6 {[%clk 0:00:23]} 27. Rxd8+ {[%clk 0:00:15]}  Kg7 {[%clk 0:00:24]} 28. Nd4 {[%clk 0:00:15]}  Rc5 {[%clk 0:00:14]} 29. Rc8 {[%clk 0:00:15]}  Rd5 {[%clk 0:00:15]} 30. Rxc6 {[%clk 0:00:13]}  Rxd4 {[%clk 0:00:15]} 31. b3 {[%clk 0:00:14]}  a5 {[%clk 0:00:15]} 32. Rc5 {[%clk 0:00:14]}  Rd5 {[%clk 0:00:16]} 33. Rxd5 {[%clk 0:00:12]}  exd5 {[%clk 0:00:17]} 34. c3 {[%clk 0:00:12]}  bxc3 {[%clk 0:00:15]} 35. Kc2 {[%clk 0:00:12]}  d4 {[%clk 0:00:14]} 36. a3 {[%clk 0:00:12]}  Kf6 {[%clk 0:00:14]} 37. b4 {[%clk 0:00:13]}  axb4 {[%clk 0:00:13]} 38. axb4 {[%clk 0:00:14]}  Ke6 {[%clk 0:00:13]} 39. g4 {[%clk 0:00:14]}  Kd6 {[%clk 0:00:12]} 40. Kd3 {[%clk 0:00:15]}  Kd5 {[%clk 0:00:12]} 41. Kc2 {[%clk 0:00:13]}  Kc4 {[%clk 0:00:13]} 42. b5 {[%clk 0:00:14]}  d3+ {[%clk 0:00:13]} 43. Kc1 {[%clk 0:00:14]}  Kxb5 {[%clk 0:00:14]} 0-1


[Site "https://www.chess.com"]